Cogmind - Beta 13 @@@ ROGUE MODE // 2024.06.30 @ 17:38:17 Player: mournfully Result: Destroyed by G-34 Mercenary with Small Laser Performance ------------- Evolutions (0) 0 Regions Visited (1) 200 Robots Destroyed (24) 120 Value Destroyed (377) 377 Prototype IDs (0) 0 Alien Tech Used (0) 0 Bonus (0) 0 TOTAL SCORE: 697 Bonus ------- None Cogmind --------- Core Integrity 0/250 Matter 284/300 Energy 237/250 System Corruption 0% Temperature Cool (26) Movement Rolling (90) Location -10/Materials Parts ------- > --- POWER (1) -------- Ion Engine > --- PROPULSION (2) --- Armored Wheel Armored Wheel > --- UTILITY (2) ------ Medium Storage Unit Improved Targeting Computer > --- WEAPON (2) ------- Beam Cannon Light Assault Rifle > --- INVENTORY (10) --- Light Ion Engine Armored Wheel Armored Wheel Signal Interpreter Improved Targeting Computer Medium Laser Beam Cannon Light Assault Rifle Grenade Launcher Peak State ------------ > --- POWER ------------ Ion Engine > --- PROPULSION ------- Armored Wheel Armored Wheel > --- UTILITY ---------- Small Storage Unit Improved Targeting Computer > --- WEAPON ----------- Light Assault Rifle Light Assault Rifle > --- INVENTORY -------- Light Ion Engine Armored Wheel Visual Processing Unit Medium Laser Beam Cannon Beam Cannon Light Assault Rifle Grenade Launcher [Rating: 11] Favorites ----------- Power Ion Engine Engine Ion Engine Propulsion Armored Wheel Treads Light Treads Leg Aluminum Leg Wheel Armored Wheel Utility Small Storage Unit Device Tractor Beam Storage Small Storage Unit Processor Improved Targeting Computer Weapon Light Assault Rifle Energy Gun Medium Laser Energy Cannon Beam Cannon Ballistic Gun Light Assault Rifle Launcher Grenade Launcher Build | -11 -10 ------- Run | Yrd Mat Slots Evolved . | . . Power . | . . Propulsion . | . . Utility . | . . Weapon . | . . Parts Attached 30 | 6 24 Power 4 | 1 3 Engine 4 | 1 3 Core . | . . Reactor . | . . Propulsion 7 | 2 5 Treads 3 | 2 1 Leg 2 | . 2 Wheel 2 | . 2 Hover . | . . Flight . | . . Utility 6 | 1 5 Device 1 | . 1 Storage 2 | 1 1 Processor 3 | . 3 Hackware . | . . Protection . | . . Artifact . | . . Weapon 13 | 2 11 Energy Gun 1 | 1 . Energy Cannon 2 | . 2 Ballistic Gun 7 | 1 6 Ballistic Cannon . | . . Launcher 3 | . 3 Special Weapon . | . . Impact Weapon . | . . Slashing Weapon . | . . Piercing Weapon . | . . Special Melee Weapon . | . . Unidentified Prototypes . | . . Parts Lost 7 | . 7 Power 2 | . 2 Propulsion 2 | . 2 Utility 1 | . 1 Weapon 2 | . 2 Highest Loss Streak 3 | . 3 To Critical Strikes . | . . Average Slot Usage (%) 87 | . 87 Engine 12 | . 12 Treads 9 | . 9 Leg 2 | . 2 Wheel 12 | . 12 Storage 14 | . 14 Processor 6 | . 6 Energy Gun 4 | . 4 Ballistic Gun 20 | . 20 Launcher 2 | . 2 Naked Turns . | . . Heaviest Build 17 | 11 17 Greatest Support 40 | 40 40 Greatest Overweight (x) 4 | 1 4 Average Overweight (x) . | . . Largest Inventory Capacity 10 | 8 10 Average Capacity 8 | 7 8 Most Carried 10 | 5 10 Average Carried 4 | 1 5 Final Capacity 10 | 8 10 Final Carried 9 | 1 9 Class Distribution -------------------- 58% | Mutant 41% | Scavenger-Mutant Dominant Class ---------------- Mutant | -10/Materials Resources | -11 -10 ----------- Run | Yrd Mat Matter Collected 604 | 179 425 Remotely 113 | . 113 Salvage Created 519 | . 519 Parts 48 | . 48 Haulers Intercepted 2 | . 2 Recyclers Shooed 1 | . 1 Parts Field Recycled . | . . Retrieved Matter . | . . Parts Self-Destructed . | . . Prevented . | . . Kills | -11 -10 ------- Run | Yrd Mat Combat Hostiles Destroyed 13 | . 13 Guns 5 | . 5 Cannons 2 | . 2 AOE 6 | . 6 Classes Destroyed 7 | . 7 Worker 4 | . 4 Builder 2 | . 2 Hauler 2 | . 2 Operator 1 | . 1 Watcher 2 | . 2 Swarmer 6 | . 6 Grunt 7 | . 7 Best Kill Streak 13 | . 13 Combat Bots Only 6 | . 6 Max Kills in Single Turn 3 | . 3 Gunslinging . | . . Exploded 2 | . 2 Melee . | . . Uniques/NPCs Destroyed . | . . Combat | -11 -10 -------- Run | Yrd Mat Hostile Shots Fired 105 | . 105 Missed 22 | . 22 Damage Taken 962 | . 962 Core 258 | . 258 Absorbed by Shields . | . . Core Remaining (%) 100 | 100 . Volleys Fired 66 | . 66 Largest 2 | . 2 Hottest 90 | . 90 Shots Fired 120 | . 120 Gun 105 | . 105 Cannon 7 | . 7 Launcher 8 | . 8 Special . | . . Kinetic 78 | . 78 Thermal 34 | . 34 Explosive 8 | . 8 Electromagnetic . | . . Robot Hit Streak 6 | . 6 Robot Miss Streak 4 | . 4 Penetration Max . | . . Secondary Targets . | . . Shots Hit Robots 59 | . 59 Core Hits 41 | . 41 Critical Kills . | . . Critical Parts Destroyed 1 | . 1 Critical Strikes 1 | . 1 Destroy 1 | . 1 Melee Attacks . | . . Impact . | . . Slashing . | . . Piercing . | . . Sneak Attacks . | . . Combat Hostiles . | . . Follow-up Attacks . | . . Damage Inflicted 1164 | . 1164 Guns 440 | . 440 Cannons 105 | . 105 Explosions 612 | . 612 Melee . | . . Ramming 7 | . 7 Kinetic 291 | . 291 Thermal 254 | . 254 Explosive 612 | . 612 Electromagnetic . | . . Impact . | . . Slashing . | . . Piercing . | . . Highest Corruption . | . . Average Corruption . | . . Corruption Purged . | . . Corruption Blocked . | . . Overload Shots . | . . Overflow Damage 42 | . 42 Projectiles . | . . Explosions 42 | . 42 Melee . | . . Knockbacks . | . . Impact . | . . Kinetic . | . . Secondary . | . . Self-Inflicted Damage 101 | . 101 Shots 3 | . 3 Rammed 3 | . 3 Targets Rammed 3 | . 3 Kicked . | . . Crushed . | . . Highest Temperature 301 | . 301 Average Temperature 100 | . 100 Received Heat Transfer 306 | . 306 Effects 2 | . 2 Energy Bleed 1 | . 1 Interference 1 | . 1 Siege Activations . | . . Robots Corrupted . | . . Combat Hostiles . | . . Parts Fried . | . . Impact Corruptions . | . . Robots Melted . | . . Combat Hostiles . | . . Parts Melted 4 | . 4 Heat Transferred 666 | . 666 Parts Sabotaged . | . . Parts Stolen . | . . Parts Stripped . | . . Power Chain Reactions . | . . Alert | -11 -10 ------- Run | Yrd Mat Peak Influence 337 | . 337 Initial . | . . Average 141 | . 156 Maximum Alert Level 1 | . 1 Low Security (%) 77 | 100 75 Level 1 22 | . 24 Level 2 . | . . Level 3 . | . . Level 4 . | . . Level 5 . | . . High Security . | . . Max Security . | . . Squads Dispatched 3 | . 3 Investigation 1 | . 1 Extermination . | . . Reinforcement 2 | . 2 Assault . | . . Garrison . | . . Intercept . | . . Searches Triggered . | . . Construction Impeded . | . . Haulers Reinforced . | . . Active Scanning Responses . | . . Cargo Convoy Interrupts . | . . Stealth | -11 -10 --------- Run | Yrd Mat Distress Signals 1 | . 1 Communications Jammed . | . . Distress Signals . | . . Times Spotted 25 | . 25 Peak Tracking Total 6 | . 6 Tactical Retreats . | . . Traps | -11 -10 ------- Run | Yrd Mat Traps Triggered . | . . Indirectly . | . . Trap Hack Attempts . | . . Triggered . | . . Disarmed . | . . Reprogrammed . | . . Reused . | . . Traps Extracted . | . . Installed . | . . Triggered . | . . Machines | -11 -10 ---------- Run | Yrd Mat Machines Disabled . | . . Max in Single Turn . | . . Machines Repaired . | . . Machines Dismantled . | . . Machines Sabotaged . | . . Overloaded Fab Kills . | . . Hacking | -11 -10 --------- Run | Yrd Mat Machines Accessed 2 | . 2 Terminals 2 | . 2 Fabricators . | . . Repair Stations . | . . Recycling Units . | . . Scanalyzers . | . . Garrison Access . | . . Total Hacks 6 | . 6 Successful 2 | . 2 Failed 4 | . 4 Catastrophic 1 | . 1 Database Lockouts . | . . Manual 5 | . 5 Terminals 6 | . 6 Fabricators . | . . Repair Stations . | . . Recycling Units . | . . Scanalyzers . | . . Garrison Access . | . . Terminal Hacks 2 | . 2 Terminal Index 1 | . 1 Locate Traps 1 | . 1 Fabricator Hacks . | . . Repair Station Hacks . | . . Recycling Unit Hacks . | . . Scanalyzer . | . . Garrison Access Hacks . | . . Unauthorized Hacks . | . . Terminals . | . . Fabricators . | . . Repair Stations . | . . Recycling Units . | . . Scanalyzers . | . . Garrison Access . | . . Data Cores Recovered . | . . Used . | . . Hacking Detections 2 | . 2 Full Trace Events 2 | . 2 Feedback Events . | . . Feedback Blocked . | . . Robot Schematics Acquired . | . . Robots Built . | . . Authchips . | . . Time . | . . Total Robot Build Rating . | . . Part Schematics Acquired . | . . Parts Built . | . . Authchips . | . . Time . | . . Total Part Build Rating . | . . Parts Repaired . | . . Time . | . . Parts Recycled . | . . Recycled Matter . | . . Retrieved Matter . | . . Retrieved Components . | . . Parts Scanalyzed . | . . Part Schematics Acquired . | . . Parts Damaged . | . . Bothacking | -11 -10 ------------ Run | Yrd Mat Used RIF Installer . | . . Robots Hacked . | . . Non-combat . | . . Combat . | . . Robot Hacks Applied . | . . Relay Couplers Released . | . . Fabnet Peak Effective % . | . . Robots Rewired . | . . Allies Hacked . | . . Hacks Repelled . | . . Allies | -11 -10 -------- Run | Yrd Mat Total Allies . | . . Largest Group . | . . Highest-Rated Group . | . . Highest-Rated Ally . | . . Total Orders . | . . Ally Attacks . | . . Total Damage . | . . Kills . | . . Allies Corrupted . | . . Allies Melted . | . . Intel | -11 -10 ------- Run | Yrd Mat Robot Analysis Total . | . . Derelict Logs Recovered . | . . Drone Launches . | . . Drone Recoveries . | . . Exploration | -11 -10 ------------- Run | Yrd Mat Turns Passed 743 | 73 670 Spaces Moved 438 | 44 394 Core 16 | 13 3 Treads 121 | 31 90 Legs 37 | . 37 Wheels 264 | . 264 Hover . | . . Flight . | . . Fastest Speed 50 | 50 90 Average Speed 112 | 135 109 Slowest Speed 250 | 160 250 Overloaded Moves . | . . Propulsion Burnouts . | . . Robots Hopped . | . . Cave-ins Triggered . | . . Exploration Rate (%) 23 | 5 42 Regions Visited 1 Branch Regions . Pre-discovered Areas . | . . Known Exits Taken . | . . Unknown Exits Taken 1 | 1 . Scrap Searched . | . . Spaces Dug . | . . Terrain Destroyed 38 | . 38 Melee . | . . Projectile . | . . AOE 38 | . 38 Terrain Rammed . | . . Walls Destroyed . | . . Machines Disabled . | . . Actions | -11 -10 --------- Run | Yrd Mat Total 577 | 57 520 Wait 15 | . 15 Move 437 | 43 394 Hop . | . . Pick Up 15 | 6 9 Fast Attach 16 | 3 13 Attach 5 | 3 2 Detach 3 | . 3 Swap 9 | . 9 Drop 8 | 2 6 Fire 66 | . 66 Melee . | . . Ram . | . . Kick . | . . Crush 3 | . 3 Escape Stasis . | . . Rewire . | . . Trap . | . . Miscellaneous . | . . Route ------- -11/Scrapyard -10/Materials (discovered 2 exits: *Min x2) History --------- Turn | Location | Event 15 | -11/Scrapyard | Discovered new exit (range 16) 74 | -11/Scrapyard | Entered Materials 241 | -10/Materials | Discovered new exit (range 15) 260 | -10/Materials | Core integrity fell below 50% 288 | -10/Materials | Lost 3 parts (1p1n1w) 350 | -10/Materials | Core integrity fell below 20% 372 | -10/Materials | Build established: Mutant 621 | -10/Materials | Discovered new exit (range 12) 624 | -10/Materials | Identified exit to Mines 744 | -10/Materials | Destroyed by G-34 Mercenary with Small Laser Last Messages --------------- Dropped Visual Processing Unit. Acquired Signal Interpreter. Connecting with Terminal... Current location identified: Materials >>Index(Terminals) Found 8 terminals. Downloaded coordinate data. >>Traps(Locate) Found 8 traps in 3 arrays: 1x EMP Trap 6x Blade Trap 1x Blade Trap Map updated. K-01 Serf cleans the Terminal. Connecting with Terminal... ALERT: Suspicious activity at Terminal M007. Dispatching Investigation squad. O-16 Technician: "IFF HANDSHAKE FAILED. SECURING TERMINAL." Lgt. Assault Rifle destroyed. Map ----- +----------------------------------------------------+ | """ # ## ?????????????????? | | """ # ## > > ?????????????????? | | """ # ## ?????????????????? | | ! # ##* ##### #??????????????????? | | ####+### ### ##??????????????????????????????? | | # = ##??????????????????????????????? | | # %T#??????????????????????????????? | | + [ = ## ?????????????????????????????? | | # ]][ |! ## ??????????????????????????? | | %# ][ ||= ! # "?????????????????????????? | | # # ! "?????????????????????????? | | +## % + ?? ?????????????????????????? | | = # ????????????????????????????? | | +#########+## #??????????????????????????????? | | #????? ## ##??????????????????????????????? | | """#????? ## #???????????????????????????????? | | """#????? ## #??????????########?????????????? | | """#????? ## #??????????# ?????????????? | | """#???? ## ##???####### """"" #??????????? | | """#???? # ##### # """"" #??????????? | | #????? # # """"" #??????????? | | #????? # T g T + #??????????? | | #?????? # # #??????????? | | #???????# ##### #] #??????????? | | #####???????############ ## #??????????? | | ????????????????# = # @ ####+##+####??????????? | | ????????????????# + #????^^? ????????????? | | ????????????????# """ # #????^^?? ???????????? | | ????????????????# """ # ?^^??? ?????????? | | ????????????????# """ # #####??????+##????????? | | ????????????????+ # ^#?????????????????????? | | ????????????????##+##+## +?????????????????????? | | ??????????????????????? #?????????????????????? | | ??????????????????????? #?????????????????????? | | ??????????????????????######?????????????????????? | | ?????????????????????????????????????????????????? | | ?????????????????????????????????????????????????? | | ?????????????????????????????????????????????????? | | ?????????????????????????????????????????????????? | | ?????????????????????????????????????????????????? | | | | | | | | | | | | | | | | | | | | | +----------------------------------------------------+ Best States ------------- Heat Dissipation 25 Energy Generation 10 Energy Capacity 250 Matter Stores 300 Matter Capacity 300 Sight Range 16 Terrain Scan Density 10 Evasion (%) 55 Targeting Accuracy 6 Recoil Reduction 2 Item Schematics ----------------- None Robot Schematics ------------------ None Fabricated ------------ Nothing Alien Tech Used ----------------- None Achievements -------------- None Challenges ------------ None Game ------ Seed DerelictSpreadFlail Manual? 0 Play Time 00:14:15 Cumulative 21.1 hours Start 2024.06.30 @ 17:25:45 End 2024.06.30 @ 17:38:17 Sessions 1 Manual Loads 0 Difficulty Rogue Special Mode None Game No. 24 Rogue 23 Adventurer 1 Explorer 0 Win Type - Total 0 Types 0/0/0/0/0/0/0/0/0 Lore% 7 Gallery% 15 Achievement% 16 Wizard Run 0 Options --------- Layout 1 ASCII 0 Keyboard 0 Movement Mouse Keybinds 0 Fullscreen 2 Font 24/Smallcaps Map View 50x35 Zoom Use 0% Tactical HUD 0 Map Filters NONE Filters NONE Steam 1 RUN: e83ff402-2019-4bec-a580-999e5f14f58c